{"text_format":"1","workbook":"xlsx","n_sheets":4,"sheets":["Voorblad","Format omzetderving","Format algemene meerkosten","Declaratiekalender Jeugd & Wmo"],"not_rendered":{"charts":0,"images":0,"macros":1,"external_links":0,"defined_names":0,"comments":0,"pivot_tables":0},"unopened":[],"bounds":{"document_bytes":16777216,"sheet_cells":100000,"rows_first":2000,"rows_last":500,"rows_between":2000,"halvings":0,"cell_chars":16384,"cell_head_chars":4096},"cells_cut":0,"cells_raw":0,"read":"whole","date_system":"1900"}

{"sheet":"Voorblad","index":0,"n_rows":33,"n_cols":12,"rows_kept":33,"cut":false,"hidden":false,"merged":[[25,1,25,2],[17,1,17,2],[19,1,22,2],[2,4,5,9],[0,0,0,11],[2,1,2,2],[6,11,9,11]]}
["Formulier omzetderving / meerkosten coronacrisis"]
[]
[null,"Zorgaanbieder",null,null,"Indienen: Indien u het formulier volledig hebt ingevuld, gecontroleerd, ondertekend en de uitgangspunten aandachtig hebt doorgenomen dient u het formulier in door op onderstaande knop te klikken"]
[null,"Naam aanbieder:"]
[null,"Adres:"]
[null,"KVK-nummer:",null,null,null,null,null,null,null,null,null,"Controle ondertekening & uiterlijke indiendatum"]
[null,"AGB-code:",null,null,null,null,null,null,null,null,null,{"$f":"IF(C19=\"\",\"Vergeet niet te ondertekenen!\",\nIF(C24=\"\",\"Voer datum in\",IF(MAX('Format omzetderving'!F3:F13)=0,\"Vul Format omzetderving in\",(IF(C24>MAX('Format omzetderving'!F3:F13),\"De uiterlijke datum van indienen is inmiddels verstreken!\")))))","v":"Vergeet niet te ondertekenen!"}]
[null,"IBAN:"]
[null,"Contactpersoon:"]
[null,"Telefoonnummer:"]
[null,"Emailadres:"]
[]
[null,"Door ondertekening van het formulier 'omzetderving / meerkosten coronacrisis':"]
[]
[null,"Verklaart de bestuurder van de zorgaanbieder, welke volgens de KvK gemachtigd is, dat de opgegeven omzetderving en/of meerkosten direct voortvloeiende uit de coronacrisis, naar waarheid zijn opgevoerd"]
[]
[]
[null,"Zorgaanbieder"]
[null,"Naam ondertekenaar:"]
[null,"Handtekening:"]
[]
[]
[]
[null,"Datum:"]
[]
[null,"Uitgangspunten Let op!"]
[null,"1. De omzetderving en/of meerkosten mogen maximaal op de uiterlijke indiendatum worden ingediend."]
[null,"2. Als de aanbieder ziet dat de compensatie van omzetderving te hoog is, wordt de aanbieder dringend verzocht dit aan te geven bij RDS, zodat afrekening achteraf wordt voorkomen"]
[null,"3. Als de gerealiseerde kosten aanzienlijk afwijken van de financiering van de omzet, wordt daarvoor afgerekend."]
[null,"4. Indien er compensatie heeft plaatsgevonden voor omzetderving over een opgegeven betrekkingsperiode is het niet meer mogelijk hier achteraf declaraties over in te dienen."]
[null,"5. De aanbieder dient het addendum 'Generiek addendum bij de op basis van de Basisovereenkomsten Jeugd en WMO aangegane Deelovereenkomsten' voorafgaand aan het instuuren van dit format te ondertekenen"]
[null,"6. In het geval dat omzetderving én meerkosten beide worden opgevoerd is een correctie op de omzetderving mogelijk afhankelijk van de aard van de meerkosten"]
[null,"7. Het is niet toegestaan om reguliere productie niet te declareren en wél aanspraak te maken op omzetderving"]

{"sheet":"Format omzetderving","index":1,"n_rows":21,"n_cols":7,"rows_kept":21,"cut":false,"hidden":false,"merged":[[16,6,16,8],[0,0,0,5],[20,0,24,5],[13,0,13,1],[14,0,14,1],[15,0,15,1],[16,0,16,1],[17,2,17,4]]}
["Format Omzetderving"]
["Domein","Gemeente","Stap 1.\nKies betrekkingsperiode","Stap 2.\nGedeclareerde omzet over betrekkingsperiode","Gemiddelde geindexeerde omzet 2019*","Uiterlijke datum indienen"]
["Jeugd","Bodegraven-Reeuwijk",null,0,"<te bepalen door RDS>",{"$f":"IF(C3=\"\",\"\",VLOOKUP(C3,'Declaratiekalender Jeugd & Wmo'!B:D,3,0))","v":""}]
["Wmo","Bodegraven-Reeuwijk",null,0,"<te bepalen door RDS>",{"$f":"IF(C4=\"\",\"\",VLOOKUP(C4,'Declaratiekalender Jeugd & Wmo'!B:C,2,0))","v":""}]
["Jeugd","Gouda",null,0,"<te bepalen door RDS>",{"$f":"IF(C5=\"\",\"\",VLOOKUP(C5,'Declaratiekalender Jeugd & Wmo'!B:C,2,0))","v":""}]
["Wmo","Gouda",null,0,"<te bepalen door RDS>",{"$f":"IF(C6=\"\",\"\",VLOOKUP(C6,'Declaratiekalender Jeugd & Wmo'!B:C,2,0))","v":""}]
["Beschermd wonen","Gouda (centrumgemeente)",null,0,"<te bepalen door RDS>",{"$f":"IF(C7=\"\",\"\",VLOOKUP(C7,'Declaratiekalender Jeugd & Wmo'!B:C,2,0))","v":""}]
["Jeugd","Krimpenerwaard",null,0,"<te bepalen door RDS>",{"$f":"IF(C8=\"\",\"\",VLOOKUP(C8,'Declaratiekalender Jeugd & Wmo'!B:C,2,0))","v":""}]
["Wmo","Krimpenerwaard",null,0,"<te bepalen door RDS>",{"$f":"IF(C9=\"\",\"\",VLOOKUP(C9,'Declaratiekalender Jeugd & Wmo'!B:C,2,0))","v":""}]
["Jeugd","Waddinxveen",null,0,"<te bepalen door RDS>",{"$f":"IF(C10=\"\",\"\",VLOOKUP(C10,'Declaratiekalender Jeugd & Wmo'!B:C,2,0))","v":""}]
["Wmo","Waddinxveen",null,0,"<te bepalen door RDS>",{"$f":"IF(C11=\"\",\"\",VLOOKUP(C11,'Declaratiekalender Jeugd & Wmo'!B:C,2,0))","v":""}]
["Jeugd","Zuidplas",null,0,"<te bepalen door RDS>",{"$f":"IF(C12=\"\",\"\",VLOOKUP(C12,'Declaratiekalender Jeugd & Wmo'!B:C,2,0))","v":""}]
["Wmo","Zuidplas",null,0,"<te bepalen door RDS>",{"$f":"IF(C13=\"\",\"\",VLOOKUP(C13,'Declaratiekalender Jeugd & Wmo'!B:C,2,0))","v":""}]
["Sub-totaal Jeugd",null,null,{"$f":"SUM(D3,D5,D8,D10,D12)","v":0},{"$f":"SUM(E3,E5,E8,E10,E12)","v":0},{"$f":"IF(C14=\"\",\"\",VLOOKUP(C14,'Declaratiekalender Jeugd & Wmo'!B:C,2,0))","v":""}]
["Sub-totaal Wmo",null,null,{"$f":"SUM(D4,D6,D9,D11,D13)","v":0},{"$f":"SUM(E4,E6,E9,E11,E13)","v":0},{"$f":"IF(C15=\"\",\"\",VLOOKUP(C15,'Declaratiekalender Jeugd & Wmo'!B:C,2,0))","v":""}]
["Sub-totaal Beschermd wonen",null,null,{"$f":"D7","v":0},{"$f":"SUM(E7)","v":0},{"$f":"IF(C16=\"\",\"\",VLOOKUP(C16,'Declaratiekalender Jeugd & Wmo'!B:C,2,0))","v":""}]
["Totaal omzet",null,null,{"$f":"SUM(D14:D16)","v":0},{"$f":"SUM(E14:E16)","v":0},{"$f":"IF(D17=0,0,E17-D17)","v":0},"Gederfde omzet voor verrekening "]
[null,null,"Stap 3. Voer in: eventuele overige inkomsten / besparing op organisatorische kosten =>",null,null,0]
[null,null,null,null,null,{"$f":"F17-F18","v":0},"Te verrekenen gederfde omzet"]
[]
["*Toelichting: De omzetderving wordt door de RDS vastgesteld door per domein (jeugd, wmo en beschermd wonen) de gemiddelde omzet over 2019 (verhoogd met de indexatie 2020 van 2,58%) af te zetten t.o.v. de gefactureerde omzet. Het uitgangspunt om de gemiddelde omzet over 2019 te bepalen zijn de ingediende productieverantwoordingen. Voor nieuwe aanbieders of aanbieders waar het gemiddelde inkomen een atypische uitkomst heeft, bepalen RDS en aanbieder gezamenlijk welke periode representatief is voor de maandomzet. De gederfde omzet wordt naar rato verrekend onder de gemeenten waar de aanbieder in 2019 productie heeft geleverd."]

{"sheet":"Format algemene meerkosten","index":2,"n_rows":20,"n_cols":10,"rows_kept":20,"cut":false,"hidden":false,"merged":[[0,0,0,4],[19,1,23,4]]}
["Format algemene meerkosten"]
[null,"Stap 1.\nKies Domein","Stap 2.\nOmschrijving meerkosten","Stap 3.\nGemaakte meerkosten","Stap 4.\nBijbehorend document(en)"]
["Voorbeeld:","Jeugd","Voorbeeld: Persoonlijke beschermingsmiddelen (mondkapjes + afscheidingsmogelijkheden) zie handleiding",875,"Mail wisseling met RDS incl. toestemming en Factuur nummers 3, 4 en 5 toegevoegd in mail",null,null,null,null,"Jeugd"]
[null,null,null,0,null,null,null,null,null,"Wmo"]
[null,null,null,0,null,null,null,null,null,"Algemeen"]
[null,null,null,0]
[null,null,null,0]
[null,null,null,0]
[null,null,null,0]
[null,null,null,0]
[null,null,null,0]
[null,null,null,0]
[null,null,null,0]
[null,null,null,0]
[null,null,null,0]
[null,null,null,0]
[null,null,null,0]
[null,"Totaal algemene meerkosten",null,{"$f":"SUM(D4:D17)","v":0}]
[]
[null,"*Toelichting: De algemene meerkosten die worden opgevoerd worden  naar rato verrekend onder de gemeenten waar de aanbieder in 2019 productie heeft geleverd"]

{"sheet":"Declaratiekalender Jeugd & Wmo","index":3,"n_rows":21,"n_cols":4,"rows_kept":21,"cut":false,"hidden":true,"merged":[]}
[null,"Betreft de declaratie van alle geleverde zorg in de periode:","Uiterlijke indiendatum","Uiterlijke indiendatum + 30 dagen gemeente"]
["Jeugd","periode 3-2020 (1-3-2020 t/m 31-3-2020)","2020-05-31",{"$f":"C2+30","v":"2020-06-30"}]
["Jeugd","periode 4-2020 (1-4-2020 t/m 30-4-2020)","2020-06-30",{"$f":"C3+30","v":"2020-07-30"}]
["Jeugd","periode 5-2020 (1-5-2020 t/m 31-5-2020)","2020-07-31","2020-08-30"]
["Jeugd","periode 6-2020 (1-6-2020 t/m 30-6-2020)","2020-08-31","2020-09-30"]
["Jeugd","periode 7-2020 (1-7-2020 t/m 31-7-2020)","2020-09-30","2020-10-30"]
["Jeugd","periode 8-2020 (1-8-2020 t/m 31-8-2020)","2020-10-31","2020-11-30"]
["Jeugd","periode 9-2020 (1-9-2020 t/m 30-9-2020)","2020-11-30","2020-12-30"]
["Jeugd","periode 10-2020 (1-10-2020 t/m 31-10-2020)","2020-12-31","2021-01-30"]
["Jeugd","periode 11-2020 (1-11-2020 t/m 30-11-2020)","2021-01-31","2021-03-02"]
["Jeugd","periode 12-2020 (1-12-2020 t/m 31-12-2020)","2021-02-28","2021-03-30"]
["Wmo","periode 3-2020 (24-02-2020 t/m 22-03-2020)","2020-06-05","2020-07-05"]
["Wmo","periode 4-2020 (23-03-2020 t/m 19-04-2020)","2020-07-03","2020-08-02"]
["Wmo","periode 5-2020 (20-04-2020 t/m 17-05-2020)","2020-07-31","2020-08-30"]
["Wmo","periode 6-2020 (18-05-2020 t/m 14-06-2020)","2020-08-28","2020-09-27"]
["Wmo","periode 7-2020 (15-06-2020 t/m 12-07-2020)","2020-09-25","2020-10-25"]
["Wmo","periode 8-2020 (13-07-2020 t/m 09-08-2020)","2020-10-23","2020-11-22"]
["Wmo","periode 9-2020 (10-08-2020 t/m 06-09-2020)","2020-11-20","2020-12-20"]
["Wmo","periode 10-2020 (07-09-2020 t/m 04-10-2020)","2020-12-18","2021-01-17"]
["Wmo","periode 11-2020 (05-10-2020 t/m 01-11-2020)","2021-01-15","2021-02-14"]
["Wmo","periode 12-2020 (02-11-2020 t/m 29-11-2020)","2021-02-18","2021-03-20"]